Cogmind - Beta 9.6 @@@ ROGUE MODE // 2020.08.27 @ 10:16:04 Player: Tango Result: Destroyed by G-34 Mercenary with Small Laser Performance ------------- Evolutions (0) 0 Regions Visited (1) 200 Robots Destroyed (9) 45 Value Destroyed (185) 185 Prototype IDs (0) 0 Alien Tech Used (0) 0 Bonus (0) 0 TOTAL SCORE: 430 Bonus ------- None Cogmind --------- Core Integrity 0/250 Matter 125/300 Energy 99/100 System Corruption 0% Temperature Cool (12) Movement Core (50) Location -10/Materials Parts ------- > --- POWER (1) -------- (None) > --- PROPULSION (2) --- (None) > --- UTILITY (2) ------ Improved Signal Interpreter Transport Network Coupler > --- WEAPON (2) ------- (None) > --- INVENTORY (4) ---- Ion Engine Light Nuclear Core Large Storage Unit Visual Processing Unit Peak State ------------ > --- POWER ------------ (None) > --- PROPULSION ------- (None) > --- UTILITY ---------- Improved Signal Interpreter Reclamation Unit > --- WEAPON ----------- Autogun > --- INVENTORY -------- (None) [Rating: 6] Favorites ----------- Power Ion Engine Engine Ion Engine Propulsion None Utility Improved Signal Interpreter Device Weight Redist. System Storage Large Storage Unit Processor Improved Signal Interpreter Weapon Autogun Ballistic Gun Autogun Build | -11 -10 ------- Run | Scr Mat Slots Evolved . | . . Power . | . . Propulsion . | . . Utility . | . . Weapon . | . . Parts Attached 7 | . 7 Power 1 | . 1 Engine 1 | . 1 Core . | . . Reactor . | . . Propulsion . | . . Treads . | . . Leg . | . . Wheel . | . . Hover . | . . Flight . | . . Utility 5 | . 5 Device 2 | . 2 Storage 1 | . 1 Processor 2 | . 2 Hackware . | . . Protection . | . . Artifact . | . . Weapon 1 | . 1 Energy Gun . | . . Energy Cannon . | . . Ballistic Gun 1 | . 1 Ballistic Cannon . | . . Launcher . | . . Special Weapon . | . . Impact Weapon . | . . Slashing Weapon . | . . Piercing Weapon . | . . Special Melee Weapon . | . . Unidentified Prototypes . | . . Parts Lost 1 | . 1 Power . | . . Propulsion . | . . Utility . | . . Weapon 1 | . 1 Highest Loss Streak 1 | . 1 Average Slot Usage (%) 33 | . 33 Processor 21 | . 21 Ballistic Gun 12 | . 12 Naked Turns 14 | . 14 Heaviest Build 3 | . 3 Greatest Support 3 | 3 3 Greatest Overweight (x) . | . . Average Overweight (x) . | . . Largest Inventory Capacity 10 | 4 10 Average Capacity 4 | 4 4 Most Carried 4 | . 4 Average Carried 2 | . 2 Final Capacity 4 | 4 4 Final Carried 4 | . 4 Class Distribution -------------------- 100% | Mutant Dominant Class ---------------- Mutant | -10/Materials Resources | -11 -10 ----------- Run | Scr Mat Matter Collected 211 | 61 150 Remotely . | . . Salvage Created 254 | . 254 Parts 22 | . 22 Haulers Intercepted 1 | . 1 Recyclers Shooed . | . . Parts Field Recycled . | . . Retrieved Matter . | . . Parts Self-Destructed . | . . Prevented . | . . Kills | -11 -10 ------- Run | Scr Mat Combat Hostiles Destroyed 5 | . 5 Guns 5 | . 5 Classes Destroyed 5 | . 5 Hauler 1 | . 1 Operator 1 | . 1 Watcher 2 | . 2 Swarmer 2 | . 2 Grunt 3 | . 3 Best Kill Streak 4 | . 4 Combat Bots Only 3 | . 3 Max Kills in Single Turn 1 | . 1 Gunslinging . | . . Exploded . | . . Melee . | . . Uniques/NPCs Destroyed . | . . Combat | -11 -10 -------- Run | Scr Mat Damage Taken 381 | 6 375 Core 253 | 6 247 Absorbed by Shields . | . . Core Remaining (%) 97 | 97 . Volleys Fired 37 | . 37 Largest 1 | . 1 Hottest 23 | . 23 Shots Fired 37 | . 37 Gun 37 | . 37 Cannon . | . . Launcher . | . . Special . | . . Kinetic 37 | . 37 Thermal . | . . Explosive . | . . Electromagnetic . | . . Robot Hit Streak 6 | . 6 Robot Miss Streak 4 | . 4 Penetration Max . | . . Secondary Targets . | . . Shots Hit Robots 18 | . 18 Core Hits 13 | 1 12 Critical Hits . | . . Critical Kills . | . . Critical Parts Destroyed . | . . Melee Attacks . | . . Impact . | . . Slashing . | . . Piercing . | . . Sneak Attacks . | . . Combat Hostiles . | . . Follow-up Attacks . | . . Damage Inflicted 351 | 12 339 Guns 325 | . 325 Cannons . | . . Explosions . | . . Melee . | . . Ramming 26 | 12 14 Kinetic 325 | . 325 Thermal . | . . Explosive . | . . Electromagnetic . | . . Impact . | . . Slashing . | . . Piercing . | . . Highest Corruption . | . . Average Corruption . | . . Corruption Purged . | . . Overload Shots . | . . Overflow Damage . | . . Projectiles . | . . Explosions . | . . Melee . | . . Knockbacks . | . . Impact . | . . Kinetic . | . . Secondary . | . . Self-Inflicted Damage 11 | 6 5 Shots . | . . Rammed 8 | 2 6 Targets Rammed 8 | 2 6 Kicked . | . . Crushed . | . . Highest Temperature 4 | . 4 Average Temperature 3 | . 3 Received Heat Transfer 117 | . 117 Siege Activations . | . . Robots Corrupted . | . . Combat Hostiles . | . . Parts Fried . | . . Impact Corruptions . | . . Robots Melted . | . . Combat Hostiles . | . . Parts Melted . | . . Heat Transferred . | . . Parts Sabotaged . | . . Parts Stolen . | . . Parts Stripped . | . . Power Chain Reactions . | . . Missiles Intercepted . | . . Alert | -11 -10 ------- Run | Scr Mat Peak Influence 200 | . 200 Average Influence 66 | . 71 Maximum Alert Level 1 | . 1 Low Security (%) 98 | 100 97 Level 1 1 | . 2 Level 2 . | . . Level 3 . | . . Level 4 . | . . Level 5 . | . . High Security . | . . Max Security . | . . Squads Dispatched 3 | . 3 Investigation 2 | . 2 Extermination . | . . Reinforcement 1 | . 1 Assault . | . . Garrison . | . . Intercept . | . . Construction Impeded . | . . Haulers Reinforced . | . . Stealth | -11 -10 --------- Run | Scr Mat Distress Signals 1 | . 1 Communications Jammed . | . . Distress Signals . | . . Times Spotted 15 | . 15 Peak Tracking Total 6 | . 6 Tactical Retreats 1 | . 1 Traps | -11 -10 ------- Run | Scr Mat Traps Triggered 3 | . 3 Indirectly . | . . Trap Hack Attempts . | . . Triggered . | . . Disarmed . | . . Reprogrammed . | . . Reused . | . . Traps Extracted . | . . Installed . | . . Triggered . | . . Machines | -11 -10 ---------- Run | Scr Mat Machines Disabled . | . . Max in Single Turn . | . . Machines Sabotaged . | . . Garrisons Compromised . | . . Overloaded Fab Kills . | . . Fab Network Shutdowns . | . . Hacking | -11 -10 --------- Run | Scr Mat Machines Accessed 2 | . 2 Terminals 1 | . 1 Fabricators . | . . Repair Stations . | . . Recycling Units 1 | . 1 Scanalyzers . | . . Garrison Access . | . . Total Hacks 5 | . 5 Successful 2 | . 2 Failed 3 | . 3 Catastrophic . | . . Database Lockouts . | . . Manual 6 | . 6 Terminals 2 | . 2 Fabricators . | . . Repair Stations . | . . Recycling Units 3 | . 3 Scanalyzers . | . . Garrison Access . | . . Terminal Hacks . | . . Fabricator Hacks . | . . Repair Station Hacks . | . . Recycling Unit Hacks . | . . Scanalyzer . | . . Garrison Access Hacks . | . . Unauthorized Hacks 2 | . 2 Terminals . | . . Fabricators . | . . Repair Stations . | . . Recycling Units 2 | . 2 Recyclers 1 | . 1 Mask 1 | . 1 Scanalyzers . | . . Garrison Access . | . . Data Cores Recovered 1 | . 1 Used . | . . Hacking Detections 1 | . 1 Full Trace Events 1 | . 1 Feedback Events . | . . Feedback Blocked . | . . Robot Schematics Acquired . | . . Robots Built . | . . Matter . | . . Time . | . . Total Robot Build Rating . | . . Part Schematics Acquired . | . . Parts Built . | . . Matter . | . . Time . | . . Total Part Build Rating . | . . Parts Repaired . | . . Time . | . . Parts Recycled . | . . Recycled Matter . | . . Retrieved Matter . | . . Retrieved Components . | . . Parts Scanalyzed . | . . Part Schematics Acquired . | . . Parts Damaged . | . . Bothacking | -11 -10 ------------ Run | Scr Mat Used RIF Installer . | . . Robots Hacked . | . . Non-combat . | . . Combat . | . . Robot Hacks Applied . | . . Relay Couplers Released . | . . Robots Rewired . | . . Allies Hacked . | . . Hacks Repelled . | . . Allies | -11 -10 -------- Run | Scr Mat Total Allies . | . . Largest Group . | . . Highest-Rated Group . | . . Highest-Rated Ally . | . . Total Orders . | . . Ally Attacks . | . . Total Damage . | . . Kills . | . . Allies Corrupted . | . . Allies Melted . | . . Intel | -11 -10 ------- Run | Scr Mat Robot Analysis Total . | . . Derelict Logs Recovered . | . . Drone Launches . | . . Drone Recoveries . | . . Exploration | -11 -10 ------------- Run | Scr Mat Turns Passed 252 | 18 234 Spaces Moved 266 | 21 245 Core 266 | 21 245 Treads . | . . Legs . | . . Wheels . | . . Hover . | . . Flight . | . . Fastest Speed 50 | 50 50 Average Speed 50 | 50 50 Slowest Speed 50 | 50 50 Overloaded Moves . | . . Propulsion Burnouts . | . . Robots Hopped . | . . Cave-ins Triggered . | . . Exploration Rate (%) 29 | 3 56 Regions Visited 1 Branch Regions . Pre-discovered Areas . | . . Known Exits Taken . | . . Unknown Exits Taken 1 | 1 . Scrap Searched . | . . Spaces Dug . | . . Terrain Destroyed . | . . Melee . | . . Projectile . | . . AOE . | . . Actions | -11 -10 --------- Run | Scr Mat Total 357 | 28 329 Wait 26 | 6 20 Move 265 | 20 245 Hop . | . . Pick Up 9 | . 9 Fast Attach . | . . Attach 7 | . 7 Detach 3 | . 3 Swap . | . . Drop 2 | . 2 Fire 37 | . 37 Melee . | . . Ram 8 | 2 6 Kick . | . . Crush . | . . Escape Stasis . | . . Rewire . | . . Trap . | . . Miscellaneous . | . . Route ------- -11/Scrapyard -10/Materials (discovered 3 exits: [*Mat x2] / [*Min]) History --------- Turn | Location | Event 6 | -11/Scrapyard | Discovered new exit (range 15) 19 | -11/Scrapyard | Entered Materials 113 | -10/Materials | Discovered new exit (range 10) 196 | -10/Materials | Discovered new exit (range 6) 233 | -10/Materials | Core integrity fell below 50% 243 | -10/Materials | Discovered new exit (range 11) 250 | -10/Materials | Core integrity fell below 20% 253 | -10/Materials | Destroyed by G-34 Mercenary with Small Laser Last Messages --------------- 00242_ Acquired 14 matter. 00242_ Slammed into S-10 Pest. 00242_ Transport Network Coupler permanently disabled. 00242_ Destabilizing: Short circuit. 00242_ K-01 Serf collects debris. 00243_ Slammed into S-10 Pest. 00243_ EXIT=FOUND 00244_ Slammed into S-10 Pest. 00245_ Acquired 11 matter. 00245_ Slammed into S-10 Pest. 00245_ Destabilizing: System interference. 00245_ Imp. Signal Interpreter temporarily disabled. 00246_ K-01 Serf collects debris. 00247_ Triggered Alarm Trap. 00247_ An alarm sounds. 00247_ ALERT: Alarm triggered, dispatching investigation squad. 00248_ Acquired data core, extracted dynamic key. 00248_ R-06 Scavenger collects Flight Unit. 00250_ Connecting with Terminal... 00251_ K-01 Serf collects debris. Map ----- +----------------------------------------------------+ | ?????# #?????????????######## | | ?????# #?????????????# ## ! | | ?????# """ """ #?????????????# | | ?????# """ """ #?????????????# | | ?????# """ """ #?????????????# r | | ?????# #?????????????# ##"# | | ?????# #?????????????## ## | | ?????###+#########??????????????# ## "" | | ???????# #??????????????????????# ## "" | | ???????# #??????????????????????# ## "" | | ???????# #??????????????????##### ## | | ???????# #??????????????????#[[ ## | | ???????# #??????????????????#[ ## | | ???????# #??????????????????#! ## ?? | | ???????#%#??????????????????#!! ## ?? | | ???????# #??????????????????#!! ##### | | # ????# #??????????????????#!! | | # ??#r#####+##???????????##### | | # """ #kg! #???????????????# | | # """ + [ ]####????????????###### | | # """ # s T #?????????????????# | | # # * #?????????????????# | | # """?#! % #?????????????????# | | # ""??# = [ #?????????????????# | | # "???+ = #?????????????????# | | ? ? ???# @ #?????????????????# | | ???????##"T"# g #??????????????# | | ????????#"""# ##+##+#??????????????# | | ????????#########????????????????????# | | ?????????????????????????????????????# | | ?????????????????????????????????????# | | ?????????????????????????????????????#### | | ????????????????????????????????????????? | | ????????????????????????????????????????? | | ????????????????????????????????????????? | | ????????????????????????????????????????? | | | | | | | | | | | | | | | | | | | | | | | | | | | | | +----------------------------------------------------+ Best States ------------- Heat Dissipation 25 Energy Generation 5 Energy Capacity 100 Matter Stores 169 Matter Capacity 300 Sight Range 16 Terrain Scan Density 10 Evasion (%) 50 Item Schematics ----------------- None Robot Schematics ------------------ None Fabricated ------------ Nothing Alien Tech Used ----------------- None Achievements -------------- None Challenges ------------ None Game ------ Seed SuspensionStructuralSpear Manual? 0 Play Time 00:07:41 Cumulative 21.8 hours Start 2020.08.27 @ 10:09:51 End 2020.08.27 @ 10:16:04 Sessions 1 Manual Loads 0 Difficulty Rogue Special Mode None Game No. 32 Rogue 22 Adventurer 10 Explorer 0 Win Type - Total 0 Types 0/0/0/0/0/0/0 Lore% 19 Gallery% 28 Achievement% 24 Wizard Run 0 Options --------- ASCII 0 Keyboard 0 Movement Mouse Keybinds 0 Fullscreen 1 Font 16/Terminus Map View 76x50 Tactical HUD 1 Map Filters NONE Filters NONE Steam 1 RUN: 057e74a6-3f03-4cf3-b961-52ac3fd0b4fb